Cogmind - Beta 17 @@@ ROGUE MODE // 2026.07.22 @ 19:14:08 Player: beans Result: Destroyed by H-61 Shepherd with Heavy Assault Cannon Performance ------------- Evolutions (2) 1000 Regions Visited (3) 600 Robots Destroyed (58) 290 Value Destroyed (1126) 1126 Prototype IDs (1) 20 Alien Tech Used (0) 0 Bonus (0) 0 TOTAL SCORE: 3036 Bonus ------- None Cogmind --------- Core Integrity 0/550 Matter 56/300 Energy 100/100 System Corruption 0% Temperature Cool (0) Movement Core (50) Location -8/Materials Parts ------- > --- POWER (1) -------- (None) > --- PROPULSION (2) --- Improved Carbon-fiber Leg > --- UTILITY (4) ------ Advanced Targeting Computer > --- WEAPON (4) ------- (None) > --- INVENTORY (5) ---- Light Ion Engine Light Nuclear Core Heat Sink Improved Heat Sink Improved Terrain Scanner Peak State ------------ > --- POWER ------------ Improved Ion Engine > --- PROPULSION ------- Light Treads Improved Treads > --- UTILITY ---------- Heat Sink Large Storage Unit Advanced Targeting Computer Light Armor Plating > --- WEAPON ----------- Autogun Autogun Autogun Autogun > --- INVENTORY -------- Ion Engine Light Ion Engine Light Nuclear Core Light Nuclear Core Light Nuclear Core Heat Sink Improved Heat Sink Improved Terrain Scanner Advanced Targeting Computer Light Armor Plating Light Armor Plating Heavy Assault Rifle Light Cannon Light Cannon Advanced EMP Blaster [Rating: 22] Favorites ----------- Power Improved Ion Engine Engine Improved Ion Engine Power Core Light Nuclear Core Propulsion Light Treads Treads Light Treads Leg Improved Carbon-fiber Leg Utility Large Storage Unit Device Heat Sink Storage Large Storage Unit Processor Advanced Targeting Computer Protection Light Armor Plating Weapon Autogun Ballistic Gun Autogun Ballistic Cannon Light Cannon Build | -11 -10 -9 -8 ------- Run | Yrd Mat Mat Mat Slots Evolved 4 | . . 2 2 Power . | . . . . Propulsion . | . . . . Utility 2 | . . . 2 Weapon 2 | . . 2 . Parts Attached 27 | 5 2 7 13 Power 3 | 1 . 1 1 Engine 2 | 1 . 1 . Core 1 | . . . 1 Reactor . | . . . . Propulsion 5 | 2 . 2 1 Treads 4 | 2 . 2 . Leg 1 | . . . 1 Wheel . | . . . . Hover . | . . . . Flight . | . . . . Utility 9 | . 1 1 7 Device 2 | . . . 2 Storage 1 | . 1 . . Processor 3 | . . . 3 Hackware . | . . . . Protection 3 | . . 1 2 Artifact . | . . . . Weapon 10 | 2 1 3 4 Energy Gun . | . . . . Energy Cannon . | . . . . Ballistic Gun 8 | 2 1 3 2 Ballistic Cannon 2 | . . . 2 Launcher . | . . . . Special Weapon . | . . . . Impact Weapon . | . . . . Slashing Weapon . | . . . . Piercing Weapon . | . . . . Special Melee Weapon . | . . . . Unidentified Prototypes 1 | . . . 1 Parts Lost 24 | . 5 . 19 Power 3 | . 1 . 2 Propulsion 4 | . 2 . 2 Utility 6 | . . . 6 Weapon 11 | . 2 . 9 Highest Loss Streak 10 | . 5 . 10 To Critical Strikes . | . . . . Average Backups 5 | . 1 4 11 Power 2 | . 1 1 3 Propulsion . | . . . . Utility 2 | . . 1 4 Weapon 1 | . . 1 2 Tool/Special . | . . . . Unused Backups 7 | . . . 7 Power 4 | . . . 4 Propulsion . | . . . . Utility 2 | . . . 2 Weapon 1 | . . . 1 Tool/Special . | . . . . Average Slot Usage (%) 78 | . 66 83 77 Engine 6 | . 9 5 5 Treads 15 | . 22 14 11 Device 2 | . . . 7 Storage 9 | . 10 10 7 Processor 2 | . . . 8 Protection 6 | . . 8 6 Ballistic Gun 34 | . 21 43 27 Peak Build Rating 22 | 5 6 16 22 Average Rating 12 | 4 4 13 17 On Entrance 5 | . 5 2 16 Avg Prop Armor Cover (%) 7 | . . 6 8 Naked Turns 31 | . 31 . . Heaviest Build 44 | 7 27 42 44 Greatest Support 43 | 40 40 43 23 Greatest Overweight (x) 10 | 1 . 10 10 Average Overweight (x) 1 | . . 1 1 Largest Inventory Capacity 15 | 5 15 15 15 Average Capacity 13 | 5 13 14 12 Most Carried 15 | 2 5 10 15 Average Carried 6 | . 1 4 11 Final Capacity 15 | 5 5 15 5 Final Carried 10 | 1 5 10 5 Class Distribution -------------------- 40% | Tank 29% | Mutant 24% | Gunner 4% | Scavenger-Tank Dominant Class ---------------- Mutant | -10/Materials Tank | -9/Materials Gunner | -8/Materials Resources | -11 -10 -9 -8 ----------- Run | Yrd Mat Mat Mat Matter Collected 1678 | 240 141 915 382 Remotely . | . . . . Salvage Created 2133 | . 369 1171 593 Parts 138 | . 19 73 46 Haulers Intercepted 4 | . . 3 1 Recyclers Shooed 4 | . 1 3 . Parts Field Recycled . | . . . . Retrieved Matter . | . . . . Parts Self-Destructed . | . . . . Prevented . | . . . . Parts Restored . | . . . . Kills | -11 -10 -9 -8 ------- Run | Yrd Mat Mat Mat Combat Hostiles Destroyed 32 | . 2 17 13 Guns 30 | . 2 17 11 Cannons 2 | . . . 2 Classes Destroyed 11 | . 5 4 2 Worker 7 | . 2 3 2 Builder 3 | . 1 . 2 Hauler 4 | . . 3 1 Recycler 7 | . 2 5 . Mechanic 1 | . . . 1 Watcher 4 | . 1 3 . Swarmer 13 | . . 7 6 Grunt 12 | . 2 6 4 Duelist 1 | . . 1 . Sentry 4 | . . 3 1 Specialist 2 | . . . 2 Best Kill Streak 10 | . 3 8 10 Combat Bots Only 5 | . 2 5 5 Max Kills in Single Turn 2 | . 1 2 1 Gunslinging 1 | . . 1 . Exploded . | . . . . Melee . | . . . . Uniques/NPCs Destroyed . | . . . . Combat | -11 -10 -9 -8 -------- Run | Yrd Mat Mat Mat Hostile Shots Fired 255 | . 81 64 110 Missed 61 | . 21 21 19 Hits 194 | . 60 43 91 Melee 1 | . . 1 . Projectile 193 | . 60 42 91 Critical Strikes 5 | . . 1 4 Damage Taken 3026 | . 694 443 1889 Core 775 | . 153 33 589 Absorbed by Shields . | . . . . Core Remaining (%) 76 | 100 38 91 . Volleys Fired 156 | . 58 50 48 Largest 4 | . 2 4 4 Hottest 92 | . 40 92 92 Shots Fired 413 | . 95 200 118 Gun 400 | . 95 200 105 Cannon 13 | . . . 13 Launcher . | . . . . Special . | . . . . Kinetic 413 | . 95 200 118 Thermal . | . . . . Explosive . | . . . . Electromagnetic . | . . . . Robot Hit Streak 14 | . 8 14 13 Robot Miss Streak 7 | . 4 7 2 Penetration Max . | . . . . Secondary Targets 8 | . . 7 1 Max Gunslinging Chain 1 | . . 1 1 Shots Hit Robots 231 | . 49 107 75 Core Hits 88 | . 15 42 31 Critical Kills . | . . . . Critical Parts Destroyed . | . . . . Critical Strikes . | . . . . Melee Attacks . | . . . . Impact . | . . . . Slashing . | . . . . Piercing . | . . . . Sneak Attacks . | . . . . Combat Hostiles . | . . . . Follow-up Attacks . | . . . . Damage Inflicted 3639 | . 669 1726 1244 Guns 3424 | . 669 1726 1029 Cannons 215 | . . . 215 Explosions . | . . . . Melee . | . . . . Ramming . | . . . . Kinetic 3639 | . 669 1726 1244 Thermal . | . . . . Explosive . | . . . . Electromagnetic . | . . . . Impact . | . . . . Slashing . | . . . . Piercing . | . . . . Highest Corruption . | . . . . Average Corruption . | . . . . Corruption Purged . | . . . . Corruption Blocked . | . . . . Overload Shots . | . . . . Overflow Damage . | . . . . Projectiles . | . . . . Explosions . | . . . . Melee . | . . . . Knockbacks 3 | . . . 3 Impact . | . . . . Kinetic 3 | . . . 3 Secondary . | . . . . Self-Inflicted Damage . | . . . . Shots . | . . . . Rammed . | . . . . Targets Rammed . | . . . . Kicked . | . . . . Crushed . | . . . . Highest Temperature 393 | . 10 393 120 Average Temperature 96 | . 3 116 46 Received Heat Transfer 771 | . 387 78 306 Effects 5 | . . 5 . Shutdowns 1 | . . 1 . Interference 3 | . . 3 . Short Circuit 1 | . . 1 . Siege Activations . | . . . . Martial Activations . | . . . . Shielding Activations . | . . . . Robots Disrupted . | . . . . Combat Hostiles . | . . . . Robots Corrupted . | . . . . Combat Hostiles . | . . . . Parts Fried . | . . . . Impact Corruptions . | . . . . Robots Melted . | . . . . Combat Hostiles . | . . . . Parts Melted . | . . . . Heat Transferred . | . . . . Parts Sabotaged . | . . . . Parts Stolen . | . . . . Parts Stripped . | . . . . Power Chain Reactions . | . . . . Alert | -11 -10 -9 -8 ------- Run | Yrd Mat Mat Mat Maximum Alert Level 1 | . . 1 . Low Security (%) 84 | 100 100 68 100 Level 1 15 | . . 31 . Level 2 . | . . . . Level 3 . | . . . . Level 4 . | . . . . Level 5 . | . . . . High Security . | . . . . Max Security . | . . . . Peak Influence 306 | . 50 306 172 Initial 111 | . . 12 111 Average 104 | . 15 127 123 Influence Increases 1045 | . 114 512 419 Destroy 0b10 Robot/C 640 | . 40 340 260 Destroy 0b10 Robot/NC 130 | . 30 70 30 Destroy Leader 146 | . 12 82 52 Disable Machine 15 | . . 15 . Destroy Structure 9 | . 2 5 2 Partial Spotted 15 | . . . 15 Lose Combat Pursuer 90 | . 30 . 60 Influence Decreases 951 | . 84 278 589 Entered New Map 171 | . . 18 153 Time Decay 581 | . 75 260 246 Lost Part 199 | . 9 . 190 Squads Dispatched 6 | . 3 . 3 Investigation . | . . . . Extermination . | . . . . Reinforcement 6 | . 3 . 3 Assault . | . . . . Garrison . | . . . . Intercept . | . . . . Searches Triggered . | . . . . Construction Impeded . | . . . . Haulers Reinforced . | . . . . Active Scanning Responses . | . . . . Cargo Convoy Interrupts . | . . . . Stealth | -11 -10 -9 -8 --------- Run | Yrd Mat Mat Mat Distress Signals 2 | . 1 1 . Communications Jammed . | . . . . Distress Signals . | . . . . Times Spotted 50 | . 14 20 16 Peak Tracking Total 5 | . 5 5 5 Tactical Retreats 5 | . 1 . 4 Traps | -11 -10 -9 -8 ------- Run | Yrd Mat Mat Mat Traps Triggered . | . . . . Indirectly . | . . . . Trap Hack Attempts . | . . . . Triggered . | . . . . Disarmed . | . . . . Reprogrammed . | . . . . Reused . | . . . . Traps Extracted . | . . . . Installed . | . . . . Triggered . | . . . . Machines | -11 -10 -9 -8 ---------- Run | Yrd Mat Mat Mat Machines Disabled 1 | . . 1 . Max in Single Turn 1 | . . 1 . Machines Repaired . | . . . . Machines Dismantled . | . . . . Machines Sabotaged . | . . . . Overloaded Fab Kills . | . . . . Hacking | -11 -10 -9 -8 --------- Run | Yrd Mat Mat Mat Machines Accessed 1 | . . 1 . Terminals . | . . . . Fabricators . | . . . . Repair Stations . | . . . . Recycling Units . | . . . . Scanalyzers 1 | . . 1 . Garrison Access . | . . . . Total Hacks 3 | . . 3 . Successful 2 | . . 2 . Failed 1 | . . 1 . Catastrophic . | . . . . Database Lockouts . | . . . . Manual . | . . . . Terminals . | . . . . Fabricators . | . . . . Repair Stations . | . . . . Recycling Units . | . . . . Scanalyzers 3 | . . 3 . Garrison Access . | . . . . Terminal Hacks . | . . . . Fabricator Hacks . | . . . . Repair Station Hacks . | . . . . Recycling Unit Hacks . | . . . . Scanalyzer 2 | . . 2 . Retrieve Study 2 | . . 2 . Garrison Access Hacks . | . . . . Unauthorized Hacks . | . . . . Terminals . | . . . . Fabricators . | . . . . Repair Stations . | . . . . Recycling Units . | . . . . Scanalyzers . | . . . . Garrison Access . | . . . . Data Cores Recovered . | . . . . Used . | . . . . Hacking Detections . | . . . . Full Trace Events . | . . . . Feedback Events . | . . . . Feedback Blocked . | . . . . Robot Schematics Acquired . | . . . . Robots Built . | . . . . Authchips . | . . . . Time . | . . . . Total Robot Build Rating . | . . . . Part Schematics Acquired . | . . . . Parts Built . | . . . . Authchips . | . . . . Time . | . . . . Total Part Build Rating . | . . . . Part Studies Acquired 2 | . . 2 . Parts Repaired . | . . . . Time . | . . . . Parts Recycled . | . . . . Recycled Matter . | . . . . Retrieved Matter . | . . . . Retrieved Components . | . . . . Parts Scanalyzed . | . . . . Part Schematics Acquired . | . . . . Parts Damaged . | . . . . Bothacking | -11 -10 -9 -8 ------------ Run | Yrd Mat Mat Mat Used RIF Installer . | . . . . Robots Hacked . | . . . . Non-combat . | . . . . Combat . | . . . . Robot Hacks Applied . | . . . . Relay Couplers Released . | . . . . Fabnet Peak Effective % . | . . . . Robots Rewired . | . . . . Allies Hacked . | . . . . Hacks Repelled . | . . . . Allies | -11 -10 -9 -8 -------- Run | Yrd Mat Mat Mat Total Allies . | . . . . Largest Group . | . . . . Highest-Rated Group . | . . . . Highest-Rated Ally . | . . . . Total Orders . | . . . . Ally Attacks . | . . . . Total Damage . | . . . . Kills . | . . . . Allies Corrupted . | . . . . Allies Melted . | . . . . Intel | -11 -10 -9 -8 ------- Run | Yrd Mat Mat Mat Active Infowar (turns) . | . . . . Robot Analysis Total . | . . . . Derelict Logs Recovered . | . . . . Drone Launches . | . . . . Drone Recoveries . | . . . . Exploration | -11 -10 -9 -8 ------------- Run | Yrd Mat Mat Mat Turns Passed 1693 | 61 258 844 530 Spaces Moved 582 | 39 102 271 170 Core 137 | 11 59 24 43 Treads 434 | 28 43 247 116 Legs 11 | . . . 11 Wheels . | . . . . Hover . | . . . . Flight . | . . . . Fastest Speed 50 | 50 50 160 50 Average Speed 203 | 132 96 252 205 Slowest Speed 550 | 160 160 550 550 Overloaded Moves . | . . . . Propulsion Burnouts . | . . . . Robots Hopped . | . . . . Potential Cave-ins . | . . . . Cave-ins Triggered . | . . . . Exploration Rate (%) 18 | 4 30 26 12 Regions Visited 3 Branch Regions . Pre-discovered Areas . | . . . . Known Exits Taken . | . . . . Unknown Exits Taken 3 | 1 1 1 . Scrap Searched . | . . . . Spaces Dug . | . . . . Terrain Destroyed . | . . . . Melee . | . . . . Projectile . | . . . . AOE . | . . . . Terrain Rammed . | . . . . Walls Destroyed . | . . . . Machines Disabled . | . . . . Actions | -11 -10 -9 -8 --------- Run | Yrd Mat Mat Mat Total 834 | 47 166 345 276 Wait 40 | . . 4 36 Move 579 | 38 101 270 170 Hop . | . . . . Pick Up 28 | 4 4 13 7 Fast Attach 9 | 2 1 . 6 Attach 19 | 3 1 8 7 Detach 1 | . 1 . . Swap 1 | . . . 1 Drop 1 | . . . 1 Fire 156 | . 58 50 48 Melee . | . . . . Ram . | . . . . Kick . | . . . . Crush . | . . . . Escape Stasis . | . . . . Rewire . | . . . . Trap . | . . . . Miscellaneous . | . . . . Route ------- -11/Scrapyard -10/Materials -9/Materials (discovered 2 exits: [*Mat] / [*Min]) -8/Materials (discovered 2 exits: [*Fac] / [*Sto]) History --------- Turn | Location | Event 8 | -11/Scrapyard | Discovered new exit (range 15) 62 | -11/Scrapyard | Entered Materials 294 | -10/Materials | Core integrity fell below 50% 305 | -10/Materials | Discovered new exit (range 9) 307 | -10/Materials | Build established: Mutant 316 | -10/Materials | Lost 5 parts (1p2n2w) 320 | -10/Materials | Entered another Materials area 320 | -9/Materials | Evolved 2 slots: Weapon x2 656 | -9/Materials | Discovered new exit (range 16) 782 | -9/Materials | Build established: Tank 1137 | -9/Materials | Discovered new exit (range 12) 1164 | -9/Materials | Entered another Materials area 1164 | -8/Materials | Evolved 2 slots: Utility x2 1169 | -8/Materials | Discovered new exit (range 15) 1551 | -8/Materials | Lost 9 parts (1p2n3u3w) 1596 | -8/Materials | Core integrity fell below 50% 1639 | -8/Materials | Core integrity fell below 20% 1692 | -8/Materials | Discovered new exit (range 16) 1694 | -8/Materials | Destroyed by H-61 Shepherd with Heavy Assault Cannon Last Messages --------------- Lgt. Cannon damaged (-19). Lgt. Nuclear Core damaged (-12). Acquired Imp. Carbon-fiber Leg. Acquired Gauss Rifle. Penetrated by Slug. Lgt. Cannon destroyed. Knocked back. Slug penetrates H-61 Shepherd. Slug penetrates Door. Slug penetrates H-61 Shepherd. Lgt. Nuclear Core destroyed. Gauss Rifle destroyed. R-06 Scavenger collects Lgt. Ion Engine. R-06 Scavenger collects Lgt. Assault Rifle. Acquired Armor Integrity Analyzer. R-06 Scavenger collects Flight Unit. Acquired 20 matter. EXIT=FOUND Armor Integrity Analyzer destroyed. Critical hit (Blast). Map ----- +----------------------------------------------------+ | ????????# #???????????????????????? | | ????????#*#???????????????????????? | | ?###????#[#???????????????????????? | | ? ????#[#???????????????????????? | | # """???# #???????????????????????? | | # "R"?###[###?????????????????????? | | # " " #! [] #?????? #???????????? | | # # =! # #???????????? | | # + + #???????????? | | # """ # # #???????????? | | # """ # #? !#???????????? | | # """?## = ##??? #???????????? | | # ??# =#?????######???????????? | | ? ???# #??????????????????????? | | # ???# #??????????????????????? | | ###????# #??????????????????????? | | ???????# #??????????????????????? | | ???????#% ##################### ? | | ???????#%% k% % % | | ???????#a *!*! ! % | | ???????#! * | | ???????#%u #################??????? | | ???????#%H!#??????????????????????? | | ???????#%* #??????????????????????? | | ???????#!! #??????????????????????? | | ???????#%|@#??????????????????????? | | ???????#!! ?????????????????????? | | ???????#% !???????????????????? | | ???????+ !#??????????????????? | | ???????# !#??????????????????? | | ???????# !#??????????????????? | | ???????# !##??????????????????? | | ???????# ####???????????????????? | | ???????+ #??????????????????????? | | ???????# ???????????????????????? | | ???????# ???????????????????????? | | ???????# ???????????????????????? | | ???????# < ???????????????????????? | | ???????# ???????????????????????? | | ???????####???????????????????????? | | ??????????????????????????????????? | | ??????????????????????????????????? | | ??????????????????????????????????? | | ??????????????????????????????????? | | ??????????????????????????????????? | | ??????????????????????????????????? | | ??????????????????????????????????? | | ??????????????????????????????????? | | ??????????????????????????????????? | | ??????????????????????????????????? | +----------------------------------------------------+ Best States ------------- Heat Dissipation 55 Energy Generation 14 Energy Capacity 265 Matter Stores 300 Matter Capacity 300 Sight Range 16 Terrain Scan Density 10 Armor Coverage 150 Evasion (%) 50 Targeting Accuracy 16 Armor Integrity Analysis 30 Recoil Reduction 2 Item Schematics ----------------- None Robot Schematics ------------------ None Fabricated ------------ Nothing Repaired ---------- Nothing Studied --------- Autogun | -9/Materials | Hacked Imp. Ion Engine | -9/Materials | Hacked Alien Tech Used ----------------- None Achievements -------------- None Challenges ------------ None Game ------ Seed DisruptionCloakEngine Manual? 0 Play Time 00:12:02 Cumulative 373.7 hours Start 2026.07.22 @ 19:05:13 End 2026.07.22 @ 19:14:08 Sessions 1 Manual Loads 0 Difficulty Rogue Special Mode None Game No. 924 Rogue 922 Adventurer 2 Explorer 0 Win Type - Total 1 Types 1/0/0/0/0/0/0/0/0/0 Lore% 55 Gallery% 67 Achievement% 53 Wizard Run 0 Options --------- Layout 2 ASCII 0 Keyboard 0 Movement Mouse Keybinds 0 Fullscreen 1 Font 24/Smallcaps Map View 50x44 Zoom Use 0% Tactical HUD 0 Map Filters NONE Filters NONE Steam 1 RUN: 6b2e0fee-bad4-468f-b072-5d6347bc8f42